[Event "Titled Tuesday Blitz June 20 Early 2023"]
[White "Balint, Vilmos"]
[Black "Skliarov, Viktor"]
[WhiteFideId "718050"]
[BlackFideId "14106736"]
[WhiteElo "2034"]
[BlackElo "2317"]
[Result "0-1"]
[Round "1"]
[TimeControl "180+2"]
[Date "2023.06.20"]
[WhiteClock "0:01:41"]
[BlackClock "0:01:21"]
[Board "202"]

1. e4 {[%clk 0:02:46]}  c5 {[%clk 0:02:59]} 2. Nf3 {[%clk 0:02:45]}  Nc6 {[%clk 0:03:00]} 3. d4 {[%clk 0:02:45]}  cxd4 {[%clk 0:03:00]} 4. Nxd4 {[%clk 0:02:46]}  Nf6 {[%clk 0:03:01]} 5. Nc3 {[%clk 0:02:46]}  e5 {[%clk 0:03:02]} 6. Ndb5 {[%clk 0:02:46]}  d6 {[%clk 0:03:02]} 7. Bg5 {[%clk 0:02:47]}  a6 {[%clk 0:03:03]} 8. Na3 {[%clk 0:02:48]}  b5 {[%clk 0:03:03]} 9. Nd5 {[%clk 0:02:49]}  Be7 {[%clk 0:03:04]} 10. Nxe7 {[%clk 0:02:49]}  Qxe7 {[%clk 0:03:01]} 11. f3 {[%clk 0:02:49]}  h6 {[%clk 0:02:59]} 12. Be3 {[%clk 0:02:49]}  O-O {[%clk 0:02:57]} 13. c4 {[%clk 0:02:49]}  b4 {[%clk 0:02:46]} 14. Nc2 {[%clk 0:02:49]}  a5 {[%clk 0:02:46]} 15. Be2 {[%clk 0:02:47]}  Be6 {[%clk 0:02:40]} 16. O-O {[%clk 0:02:46]}  a4 {[%clk 0:02:30]} 17. Qd2 {[%clk 0:02:46]}  Rfb8 {[%clk 0:02:30]} 18. b3 {[%clk 0:02:45]}  Nd7 {[%clk 0:02:11]} 19. Rfd1 {[%clk 0:02:38]}  axb3 {[%clk 0:02:11]} 20. axb3 {[%clk 0:02:38]}  Rxa1 {[%clk 0:02:09]} 21. Nxa1 {[%clk 0:02:34]}  Ra8 {[%clk 0:01:52]} 22. Nc2 {[%clk 0:02:34]}  Ra2 {[%clk 0:01:44]} 23. Ra1 {[%clk 0:02:19]}  Rxa1+ {[%clk 0:01:39]} 24. Nxa1 {[%clk 0:02:20]}  Nc5 {[%clk 0:01:40]} 25. Bd1 {[%clk 0:02:08]}  Qa7 {[%clk 0:01:33]} 26. Qxd6 {[%clk 0:02:02]}  Qxa1 {[%clk 0:01:27]} 27. Bxc5 {[%clk 0:02:02]}  Nd4 {[%clk 0:01:25]} 28. Qxe5 {[%clk 0:01:41]}  Nxf3+ {[%clk 0:01:21]} 0-1


[Site "https://www.chess.com"]

[Event "Titled Tuesday Blitz June 20 Early 2023"]
[White "Zallio, Luciano de Souza"]
[Black "Ovchinnikov, Vsevolod"]
[WhiteFideId "2109700"]
[BlackFideId "24176842"]
[WhiteElo "2057"]
[BlackElo "2376"]
[Result "0-1"]
[Round "1"]
[TimeControl "180+2"]
[Date "2023.06.20"]
[WhiteClock "0:00:20"]
[BlackClock "0:01:39"]
[Board "206"]

1. c4 {[%clk 0:02:58]}  Nf6 {[%clk 0:02:59]} 2. g3 {[%clk 0:02:58]}  g6 {[%clk 0:02:58]} 3. Bg2 {[%clk 0:02:59]}  Bg7 {[%clk 0:02:59]} 4. Nc3 {[%clk 0:02:59]}  O-O {[%clk 0:03:00]} 5. e3 {[%clk 0:02:50]}  c6 {[%clk 0:02:59]} 6. Nge2 {[%clk 0:02:48]}  d5 {[%clk 0:03:00]} 7. cxd5 {[%clk 0:02:45]}  cxd5 {[%clk 0:03:01]} 8. O-O {[%clk 0:02:39]}  Nc6 {[%clk 0:03:01]} 9. d4 {[%clk 0:02:38]}  b6 {[%clk 0:02:55]} 10. b3 {[%clk 0:02:35]}  Ba6 {[%clk 0:02:40]} 11. Ba3 {[%clk 0:02:30]}  Re8 {[%clk 0:02:39]} 12. Rc1 {[%clk 0:02:29]}  Rc8 {[%clk 0:02:38]} 13. Re1 {[%clk 0:02:23]}  e6 {[%clk 0:02:38]} 14. Nf4 {[%clk 0:01:59]}  Qd7 {[%clk 0:02:37]} 15. Nd3 {[%clk 0:01:53]}  Qb7 {[%clk 0:02:31]} 16. b4 {[%clk 0:01:47]}  Bf8 {[%clk 0:01:57]} 17. b5 {[%clk 0:00:54]}  Bxa3 {[%clk 0:01:56]} 18. bxc6 {[%clk 0:00:46]}  Rxc6 {[%clk 0:01:54]} 19. Ne5 {[%clk 0:00:46]}  Rc7 {[%clk 0:01:39]} 20. Rc2 {[%clk 0:00:20]}  Rec8 {[%clk 0:01:39]} 0-1


[Site "https://www.chess.com"]

[Event "Titled Tuesday Blitz June 20 Early 2023"]
[White "zano2023"]
[Black "Trifan, Andrei Ioan"]
[BlackFideId "12967068"]
[WhiteElo "2182"]
[BlackElo "2208"]
[Result "0-1"]
[Round "1"]
[TimeControl "180+2"]
[Date "2023.06.20"]
[WhiteClock "0:00:27"]
[BlackClock "0:00:49"]
[Board "208"]

1. d4 {[%clk 0:02:59]}  Nf6 {[%clk 0:02:55]} 2. Nd2 {[%clk 0:02:58]}  d5 {[%clk 0:02:53]} 3. Ngf3 {[%clk 0:02:58]}  b6 {[%clk 0:02:50]} 4. e3 {[%clk 0:02:59]}  Bb7 {[%clk 0:02:51]} 5. Bd3 {[%clk 0:02:57]}  e6 {[%clk 0:02:51]} 6. O-O {[%clk 0:02:56]}  Bd6 {[%clk 0:02:48]} 7. Qe2 {[%clk 0:02:55]}  O-O {[%clk 0:02:47]} 8. e4 {[%clk 0:02:53]}  dxe4 {[%clk 0:02:48]} 9. Nxe4 {[%clk 0:02:53]}  Nbd7 {[%clk 0:02:39]} 10. Bg5 {[%clk 0:02:51]}  Be7 {[%clk 0:02:36]} 11. Nxf6+ {[%clk 0:02:34]}  Nxf6 {[%clk 0:02:37]} 12. Rad1 {[%clk 0:02:29]}  h6 {[%clk 0:02:34]} 13. Bh4 {[%clk 0:02:28]}  Re8 {[%clk 0:02:17]} 14. Rfe1 {[%clk 0:02:26]}  Nd5 {[%clk 0:02:14]} 15. Bg3 {[%clk 0:02:25]}  Bd6 {[%clk 0:02:08]} 16. Qe4 {[%clk 0:02:18]}  f5 {[%clk 0:02:05]} 17. Qe2 {[%clk 0:02:06]}  Nf4 {[%clk 0:02:05]} 18. Bxf4 {[%clk 0:02:05]}  Bxf4 {[%clk 0:02:06]} 19. c3 {[%clk 0:02:02]}  Qf6 {[%clk 0:02:03]} 20. Ne5 {[%clk 0:02:00]}  Rad8 {[%clk 0:02:00]} 21. g3 {[%clk 0:01:58]}  Bxe5 {[%clk 0:01:56]} 22. dxe5 {[%clk 0:01:59]}  Qf7 {[%clk 0:01:52]} 23. f4 {[%clk 0:01:55]}  g5 {[%clk 0:01:48]} 24. Bb5 {[%clk 0:01:45]}  Rf8 {[%clk 0:01:43]} 25. Ba6 {[%clk 0:01:33]}  Ba8 {[%clk 0:01:37]} 26. Bc4 {[%clk 0:01:23]}  gxf4 {[%clk 0:01:34]} 27. gxf4 {[%clk 0:01:23]}  Qg6+ {[%clk 0:01:23]} 28. Kf2 {[%clk 0:01:22]}  Qg2+ {[%clk 0:01:22]} 29. Ke3 {[%clk 0:01:21]}  Qe4+ {[%clk 0:01:20]} 30. Kf2 {[%clk 0:01:21]}  Qxf4+ {[%clk 0:01:20]} 31. Kg1 {[%clk 0:01:16]}  Qg5+ {[%clk 0:01:18]} 32. Kf2 {[%clk 0:01:16]}  Qg2+ {[%clk 0:01:16]} 33. Ke3 {[%clk 0:01:16]}  Qh3+ {[%clk 0:01:13]} 34. Kf2 {[%clk 0:01:09]}  Qxh2+ {[%clk 0:01:12]} 35. Kf1 {[%clk 0:01:06]}  Qf4+ {[%clk 0:01:07]} 36. Kg1 {[%clk 0:00:56]}  Kh7 {[%clk 0:01:06]} 37. Rxd8 {[%clk 0:00:55]}  Rxd8 {[%clk 0:01:07]} 38. Bxe6 {[%clk 0:00:49]}  Rd2 {[%clk 0:00:59]} 39. Bxf5+ {[%clk 0:00:40]}  Kh8 {[%clk 0:00:51]} 40. Qe3 {[%clk 0:00:28]}  Rg2+ {[%clk 0:00:48]} 41. Kh1 {[%clk 0:00:27]}  Qh2# {[%clk 0:00:49]} 0-1


[Site "https://www.chess.com"]

[Event "Titled Tuesday Blitz June 20 Early 2023"]
[White "Cueto, Jonny"]
[Black "Krstulovic, Alex"]
[WhiteFideId "3300145"]
[BlackFideId "760056"]
[WhiteElo "2240"]
[BlackElo "2311"]
[Result "0-1"]
[Round "1"]
[TimeControl "180+2"]
[Date "2023.06.20"]
[WhiteClock "0:00:23"]
[BlackClock "0:00:21"]
[Board "210"]

1. d4 {[%clk 0:03:00]}  Nf6 {[%clk 0:02:57]} 2. Bf4 {[%clk 0:03:00]}  c6 {[%clk 0:02:55]} 3. Nf3 {[%clk 0:02:58]}  Ne4 {[%clk 0:02:54]} 4. Nbd2 {[%clk 0:02:56]}  Nxd2 {[%clk 0:02:53]} 5. Qxd2 {[%clk 0:02:57]}  g6 {[%clk 0:02:53]} 6. O-O-O {[%clk 0:02:54]}  Na6 {[%clk 0:02:53]} 7. e4 {[%clk 0:02:50]}  Qb6 {[%clk 0:02:53]} 8. h4 {[%clk 0:02:47]}  h5 {[%clk 0:02:52]} 9. Bc4 {[%clk 0:02:38]}  Bg7 {[%clk 0:02:38]} 10. Ng5 {[%clk 0:02:31]}  d5 {[%clk 0:02:32]} 11. exd5 {[%clk 0:02:26]}  cxd5 {[%clk 0:02:33]} 12. Bxd5 {[%clk 0:02:22]}  e6 {[%clk 0:02:27]} 13. Bb3 {[%clk 0:02:22]}  O-O {[%clk 0:02:25]} 14. g4 {[%clk 0:02:20]}  e5 {[%clk 0:02:22]} 15. gxh5 {[%clk 0:02:10]}  exf4 {[%clk 0:02:20]} 16. hxg6 {[%clk 0:02:11]}  Qxg6 {[%clk 0:02:21]} 17. Rdg1 {[%clk 0:01:58]}  Qh6 {[%clk 0:02:09]} 18. Qxf4 {[%clk 0:01:52]}  Bd7 {[%clk 0:01:47]} 19. Qg3 {[%clk 0:01:30]}  Kh8 {[%clk 0:01:33]} 20. Kb1 {[%clk 0:01:26]}  Be6 {[%clk 0:01:20]} 21. Bxe6 {[%clk 0:00:42]}  fxe6 {[%clk 0:01:16]} 22. Nxe6 {[%clk 0:00:43]}  Rg8 {[%clk 0:01:17]} 23. Qb3 {[%clk 0:00:31]}  Rae8 {[%clk 0:01:11]} 24. Ng5 {[%clk 0:00:27]}  Rgf8 {[%clk 0:01:00]} 25. Qxb7 {[%clk 0:00:27]}  Qf6 {[%clk 0:00:50]} 26. h5 {[%clk 0:00:24]}  Rb8 {[%clk 0:00:48]} 27. Qd7 {[%clk 0:00:22]}  Qxd4 {[%clk 0:00:47]} 28. Qxd4 {[%clk 0:00:16]}  Bxd4 {[%clk 0:00:48]} 29. Ne6 {[%clk 0:00:15]}  Bxb2 {[%clk 0:00:25]} 30. Nxf8 {[%clk 0:00:15]}  Ba3+ {[%clk 0:00:26]} 31. Ka1 {[%clk 0:00:14]}  Bb2+ {[%clk 0:00:20]} 32. Kb1 {[%clk 0:00:15]}  Bc3+ {[%clk 0:00:12]} 33. Kc1 {[%clk 0:00:15]}  Rxf8 {[%clk 0:00:13]} 34. Rh3 {[%clk 0:00:13]}  Rc8 {[%clk 0:00:09]} 35. Re3 {[%clk 0:00:12]}  Nb4 {[%clk 0:00:09]} 36. a3 {[%clk 0:00:11]}  Nd5 {[%clk 0:00:07]} 37. Re6 {[%clk 0:00:10]}  Bg7 {[%clk 0:00:05]} 38. h6 {[%clk 0:00:10]}  Bc3 {[%clk 0:00:04]} 39. h7 {[%clk 0:00:10]}  Nf4 {[%clk 0:00:05]} 40. Rf6 {[%clk 0:00:10]}  Bxf6 {[%clk 0:00:04]} 41. Rg4 {[%clk 0:00:09]}  Bg7 {[%clk 0:00:04]} 42. Rxf4 {[%clk 0:00:09]}  Bh6 {[%clk 0:00:04]} 43. Kb2 {[%clk 0:00:09]}  Bxf4 {[%clk 0:00:05]} 44. Kb3 {[%clk 0:00:09]}  Bd6 {[%clk 0:00:06]} 45. c4 {[%clk 0:00:10]}  Bxa3 {[%clk 0:00:07]} 46. Ka4 {[%clk 0:00:11]}  Rxc4+ {[%clk 0:00:07]} 47. Kb5 {[%clk 0:00:12]}  Rf4 {[%clk 0:00:07]} 48. Kc6 {[%clk 0:00:12]}  Rxf2 {[%clk 0:00:08]} 49. Kb7 {[%clk 0:00:13]}  Rh2 {[%clk 0:00:09]} 50. Kxa7 {[%clk 0:00:14]}  Rxh7+ {[%clk 0:00:10]} 51. Kb6 {[%clk 0:00:14]}  Bc5+ {[%clk 0:00:10]} 52. Kb5 {[%clk 0:00:14]}  Kg8 {[%clk 0:00:11]} 53. Kxc5 {[%clk 0:00:15]}  Kf7 {[%clk 0:00:12]} 54. Kd5 {[%clk 0:00:16]}  Rg7 {[%clk 0:00:12]} 55. Ke4 {[%clk 0:00:17]}  Rg6 {[%clk 0:00:13]} 56. Kd4 {[%clk 0:00:18]}  Re6 {[%clk 0:00:14]} 57. Kd5 {[%clk 0:00:18]}  Kf6 {[%clk 0:00:15]} 58. Kd4 {[%clk 0:00:19]}  Kf5 {[%clk 0:00:16]} 59. Kd5 {[%clk 0:00:20]}  Rf6 {[%clk 0:00:16]} 60. Kc5 {[%clk 0:00:21]}  Ke5 {[%clk 0:00:17]} 61. Kc4 {[%clk 0:00:21]}  Rc6+ {[%clk 0:00:17]} 62. Kd3 {[%clk 0:00:22]}  Rc5 {[%clk 0:00:17]} 63. Ke3 {[%clk 0:00:22]}  Rc3+ {[%clk 0:00:18]} 64. Kd2 {[%clk 0:00:23]}  Kd4 {[%clk 0:00:18]} 65. Ke2 {[%clk 0:00:23]}  Ke4 {[%clk 0:00:19]} 66. Kd2 {[%clk 0:00:24]}  Rc4 {[%clk 0:00:20]} 67. Ke2 {[%clk 0:00:25]}  Rc2+ {[%clk 0:00:21]} 68. Kd1 {[%clk 0:00:23]}  Kd3 {[%clk 0:00:21]} 0-1


[Site "https://www.chess.com"]

[Event "Titled Tuesday Blitz June 20 Early 2023"]
[White "Demin, Vladimir"]
[Black "Butti, Enrique"]
[WhiteFideId "4167457"]
[BlackFideId "3700470"]
[WhiteElo "2553"]
[BlackElo "2080"]
[Result "1-0"]
[Round "1"]
[TimeControl "180+2"]
[Date "2023.06.20"]
[WhiteClock "0:01:36"]
[BlackClock "0:01:17"]
[Board "211"]

1. d4 {[%clk 0:03:00]}  Nf6 {[%clk 0:02:59]} 2. Nc3 {[%clk 0:03:00]}  c5 {[%clk 0:02:58]} 3. dxc5 {[%clk 0:02:59]}  e6 {[%clk 0:02:57]} 4. e4 {[%clk 0:03:00]}  Nc6 {[%clk 0:02:55]} 5. Be3 {[%clk 0:02:54]}  Qa5 {[%clk 0:02:49]} 6. a3 {[%clk 0:02:41]}  Nxe4 {[%clk 0:02:47]} 7. Ne2 {[%clk 0:02:33]}  Bxc5 {[%clk 0:02:35]} 8. b4 {[%clk 0:02:23]}  Bxe3 {[%clk 0:02:31]} 9. Nxe4 {[%clk 0:02:21]}  Bxf2+ {[%clk 0:02:08]} 10. Nxf2 {[%clk 0:02:17]}  Nxb4 {[%clk 0:02:08]} 11. axb4 {[%clk 0:02:15]}  Qxb4+ {[%clk 0:02:07]} 12. c3 {[%clk 0:02:15]}  Qe7 {[%clk 0:02:03]} 13. Nd4 {[%clk 0:02:12]}  O-O {[%clk 0:02:01]} 14. Bd3 {[%clk 0:02:11]}  d5 {[%clk 0:02:00]} 15. O-O {[%clk 0:02:10]}  g6 {[%clk 0:01:58]} 16. Re1 {[%clk 0:02:08]}  e5 {[%clk 0:01:56]} 17. Nf3 {[%clk 0:01:59]}  e4 {[%clk 0:01:54]} 18. Bf1 {[%clk 0:01:59]}  Be6 {[%clk 0:01:52]} 19. Nd4 {[%clk 0:01:59]}  a6 {[%clk 0:01:49]} 20. c4 {[%clk 0:01:57]}  Rad8 {[%clk 0:01:35]} 21. Qb1 {[%clk 0:01:49]}  f5 {[%clk 0:01:28]} 22. Nxe6 {[%clk 0:01:44]}  Qxe6 {[%clk 0:01:27]} 23. Qxb7 {[%clk 0:01:42]}  Rf7 {[%clk 0:01:23]} 24. cxd5 {[%clk 0:01:36]}  Qxd5 {[%clk 0:01:17]} 25. Qxd5 {[%clk 0:01:36]} 1-0


[Site "https://www.chess.com"]

[Event "Titled Tuesday Blitz June 20 Early 2023"]
[White "Krutko, Anatoly"]
[Black "Nikulina, Alena"]
[WhiteFideId "4185862"]
[BlackFideId "4172051"]
[WhiteElo "2378"]
[BlackElo "1608"]
[Result "1-0"]
[Round "1"]
[TimeControl "180+2"]
[Date "2023.06.20"]
[WhiteClock "0:00:30"]
[BlackClock "0:00:06"]
[Board "213"]

1. e4 {[%clk 0:02:59]}  c5 {[%clk 0:02:58]} 2. Nf3 {[%clk 0:02:59]}  e6 {[%clk 0:02:58]} 3. d3 {[%clk 0:02:59]}  Nc6 {[%clk 0:02:57]} 4. g3 {[%clk 0:02:59]}  Nf6 {[%clk 0:02:53]} 5. Bg2 {[%clk 0:02:59]}  d5 {[%clk 0:02:54]} 6. Nbd2 {[%clk 0:02:54]}  Be7 {[%clk 0:02:52]} 7. O-O {[%clk 0:02:53]}  O-O {[%clk 0:02:51]} 8. Re1 {[%clk 0:02:53]}  a6 {[%clk 0:02:50]} 9. e5 {[%clk 0:02:53]}  Nd7 {[%clk 0:02:49]} 10. Nf1 {[%clk 0:02:54]}  f6 {[%clk 0:02:44]} 11. exf6 {[%clk 0:02:53]}  Nxf6 {[%clk 0:02:44]} 12. Ne3 {[%clk 0:02:43]}  Qe8 {[%clk 0:02:37]} 13. d4 {[%clk 0:02:39]}  Qg6 {[%clk 0:02:35]} 14. c3 {[%clk 0:02:30]}  Bd7 {[%clk 0:02:32]} 15. Ne5 {[%clk 0:02:23]}  Nxe5 {[%clk 0:02:19]} 16. dxe5 {[%clk 0:02:23]}  Ne4 {[%clk 0:02:14]} 17. f4 {[%clk 0:02:21]}  Bc6 {[%clk 0:02:00]} 18. Qg4 {[%clk 0:02:14]}  Qxg4 {[%clk 0:01:28]} 19. Nxg4 {[%clk 0:02:15]}  h5 {[%clk 0:01:27]} 20. Ne3 {[%clk 0:02:12]}  d4 {[%clk 0:01:09]} 21. Nd1 {[%clk 0:02:05]}  dxc3 {[%clk 0:00:37]} 22. Bxe4 {[%clk 0:02:02]}  cxb2 {[%clk 0:00:35]} 23. Bxb2 {[%clk 0:02:01]}  Rac8 {[%clk 0:00:34]} 24. Nc3 {[%clk 0:01:58]}  b5 {[%clk 0:00:33]} 25. Bxc6 {[%clk 0:01:58]}  Rxc6 {[%clk 0:00:32]} 26. Ne4 {[%clk 0:01:58]}  h4 {[%clk 0:00:30]} 27. Kf2 {[%clk 0:01:55]}  c4 {[%clk 0:00:25]} 28. Ke3 {[%clk 0:01:49]}  b4 {[%clk 0:00:25]} 29. Rac1 {[%clk 0:01:45]}  c3 {[%clk 0:00:26]} 30. Ba1 {[%clk 0:01:45]}  a5 {[%clk 0:00:26]} 31. Nxc3 {[%clk 0:01:37]}  bxc3 {[%clk 0:00:25]} 32. Rxc3 {[%clk 0:01:38]}  Rxc3+ {[%clk 0:00:22]} 33. Bxc3 {[%clk 0:01:39]}  a4 {[%clk 0:00:23]} 34. Rb1 {[%clk 0:01:36]}  hxg3 {[%clk 0:00:22]} 35. hxg3 {[%clk 0:01:37]}  Rc8 {[%clk 0:00:22]} 36. Bd4 {[%clk 0:01:22]}  Rc2 {[%clk 0:00:21]} 37. Rb2 {[%clk 0:01:23]}  Rc1 {[%clk 0:00:21]} 38. Rb7 {[%clk 0:01:20]}  Kf8 {[%clk 0:00:20]} 39. Ra7 {[%clk 0:01:15]}  a3 {[%clk 0:00:19]} 40. g4 {[%clk 0:00:58]}  Rc2 {[%clk 0:00:19]} 41. f5 {[%clk 0:00:57]}  exf5 {[%clk 0:00:19]} 42. gxf5 {[%clk 0:00:58]}  Rxa2 {[%clk 0:00:19]} 43. Ra8+ {[%clk 0:00:54]}  Kf7 {[%clk 0:00:19]} 44. Ra7 {[%clk 0:00:55]}  Ke8 {[%clk 0:00:17]} 45. Ke4 {[%clk 0:00:52]}  Re2+ {[%clk 0:00:16]} 46. Kd5 {[%clk 0:00:53]}  Rd2 {[%clk 0:00:16]} 47. Ke6 {[%clk 0:00:48]}  Rxd4 {[%clk 0:00:14]} 48. Rxe7+ {[%clk 0:00:48]}  Kf8 {[%clk 0:00:15]} 49. Rf7+ {[%clk 0:00:47]}  Kg8 {[%clk 0:00:15]} 50. Ra7 {[%clk 0:00:48]}  Rd3 {[%clk 0:00:13]} 51. Ra8+ {[%clk 0:00:48]}  Kh7 {[%clk 0:00:13]} 52. Ra7 {[%clk 0:00:48]}  Kh6 {[%clk 0:00:13]} 53. f6 {[%clk 0:00:37]}  gxf6 {[%clk 0:00:12]} 54. exf6 {[%clk 0:00:38]}  Re3+ {[%clk 0:00:13]} 55. Kf7 {[%clk 0:00:39]}  Rf3 {[%clk 0:00:13]} 56. Ra5 {[%clk 0:00:38]}  Rf2 {[%clk 0:00:12]} 57. Rxa3 {[%clk 0:00:36]}  Rf1 {[%clk 0:00:13]} 58. Rh3+ {[%clk 0:00:36]}  Kg5 {[%clk 0:00:12]} 59. Rg3+ {[%clk 0:00:36]}  Kh4 {[%clk 0:00:12]} 60. Rg6 {[%clk 0:00:30]}  Kh5 {[%clk 0:00:12]} 61. Kg7 {[%clk 0:00:30]}  Ra1 {[%clk 0:00:10]} 62. f7 {[%clk 0:00:31]}  Ra7 {[%clk 0:00:10]} 63. Rg1 {[%clk 0:00:30]}  Rb7 {[%clk 0:00:09]} 64. Kg8 {[%clk 0:00:30]}  Rxf7 {[%clk 0:00:09]} 65. Kxf7 {[%clk 0:00:30]}  Kh4 {[%clk 0:00:06]} 66. Kf6 {[%clk 0:00:30]} 1-0


[Site "https://www.chess.com"]

[Event "Titled Tuesday Blitz June 20 Early 2023"]
[White "Kev4444444444"]
[Black "Jimenez Almeida, Luis David"]
[BlackFideId "22242244"]
[WhiteElo "2152"]
[BlackElo "2245"]
[Result "1-0"]
[Round "1"]
[TimeControl "180+2"]
[Date "2023.06.20"]
[WhiteClock "0:00:21"]
[BlackClock "0:00:00"]
[Board "214"]

1. c4 {[%clk 0:02:56]}  e5 {[%clk 0:02:58]} 2. Nc3 {[%clk 0:02:55]}  Nc6 {[%clk 0:02:58]} 3. Nf3 {[%clk 0:02:56]}  Nf6 {[%clk 0:02:55]} 4. e4 {[%clk 0:02:56]}  Bc5 {[%clk 0:02:54]} 5. Nxe5 {[%clk 0:02:56]}  O-O {[%clk 0:02:40]} 6. Nf3 {[%clk 0:02:39]}  Re8 {[%clk 0:02:39]} 7. d3 {[%clk 0:02:33]}  d5 {[%clk 0:02:38]} 8. cxd5 {[%clk 0:02:28]}  Nxd5 {[%clk 0:02:39]} 9. Be2 {[%clk 0:02:22]}  Ndb4 {[%clk 0:02:27]} 10. a3 {[%clk 0:02:19]}  Na6 {[%clk 0:02:25]} 11. b4 {[%clk 0:02:15]}  Bd4 {[%clk 0:02:26]} 12. Bb2 {[%clk 0:02:04]}  Ne7 {[%clk 0:02:15]} 13. O-O {[%clk 0:01:56]}  Bb6 {[%clk 0:02:15]} 14. d4 {[%clk 0:01:47]}  c6 {[%clk 0:02:15]} 15. Qd2 {[%clk 0:01:31]}  Bg4 {[%clk 0:02:13]} 16. Na4 {[%clk 0:01:30]}  Bc7 {[%clk 0:02:11]} 17. Rfd1 {[%clk 0:01:27]}  Ng6 {[%clk 0:02:07]} 18. h3 {[%clk 0:01:18]}  Be6 {[%clk 0:01:54]} 19. Qc2 {[%clk 0:01:09]}  Nf4 {[%clk 0:01:49]} 20. Bxa6 {[%clk 0:01:04]}  bxa6 {[%clk 0:01:49]} 21. Nc5 {[%clk 0:01:03]}  Bc8 {[%clk 0:01:43]} 22. Bc1 {[%clk 0:01:03]}  Qf6 {[%clk 0:01:39]} 23. Bxf4 {[%clk 0:00:58]}  Qxf4 {[%clk 0:01:39]} 24. e5 {[%clk 0:00:58]}  Bxh3 {[%clk 0:01:38]} 25. Qe4 {[%clk 0:00:56]}  Qxe4 {[%clk 0:01:18]} 26. Nxe4 {[%clk 0:00:57]}  Be6 {[%clk 0:01:18]} 27. Rac1 {[%clk 0:00:56]}  Bd5 {[%clk 0:01:18]} 28. Nc3 {[%clk 0:00:55]}  Bb3 {[%clk 0:01:09]} 29. Rd2 {[%clk 0:00:55]}  a5 {[%clk 0:01:09]} 30. Rb2 {[%clk 0:00:53]}  Be6 {[%clk 0:01:05]} 31. Ne4 {[%clk 0:00:50]}  axb4 {[%clk 0:01:02]} 32. axb4 {[%clk 0:00:50]}  Bb6 {[%clk 0:01:02]} 33. Nd6 {[%clk 0:00:46]}  Red8 {[%clk 0:00:57]} 34. Rxc6 {[%clk 0:00:46]}  Bd5 {[%clk 0:00:54]} 35. Rc1 {[%clk 0:00:43]}  Bxf3 {[%clk 0:00:52]} 36. gxf3 {[%clk 0:00:43]}  Bxd4 {[%clk 0:00:52]} 37. Re2 {[%clk 0:00:41]}  Bxe5 {[%clk 0:00:32]} 38. Rxe5 {[%clk 0:00:41]}  Rxd6 {[%clk 0:00:32]} 39. Rc7 {[%clk 0:00:41]}  Rf6 {[%clk 0:00:28]} 40. Rxa7 {[%clk 0:00:39]}  Rb8 {[%clk 0:00:25]} 41. Rb7 {[%clk 0:00:39]}  Rc8 {[%clk 0:00:25]} 42. Rc5 {[%clk 0:00:36]}  Rf8 {[%clk 0:00:23]} 43. Kg2 {[%clk 0:00:35]}  g6 {[%clk 0:00:23]} 44. Rcc7 {[%clk 0:00:34]}  Rd8 {[%clk 0:00:22]} 45. b5 {[%clk 0:00:30]}  Rd3 {[%clk 0:00:22]} 46. Rc8+ {[%clk 0:00:28]}  Kg7 {[%clk 0:00:22]} 47. Rc2 {[%clk 0:00:22]}  Rdxf3 {[%clk 0:00:20]} 48. Rb2 {[%clk 0:00:22]}  Rc3 {[%clk 0:00:15]} 49. b6 {[%clk 0:00:22]}  Rcc6 {[%clk 0:00:15]} 50. Kg3 {[%clk 0:00:20]}  g5 {[%clk 0:00:15]} 51. Kg2 {[%clk 0:00:21]}  Kg6 {[%clk 0:00:00]} 52. Kg3 {[%clk 0:00:21]} 1-0


[Site "https://www.chess.com"]

[Event "Titled Tuesday Blitz June 20 Early 2023"]
[White "le-castor-faineant"]
[Black "Aloma Vidal, Robert"]
[BlackFideId "2260409"]
[WhiteElo "2144"]
[BlackElo "2435"]
[Result "1/2-1/2"]
[Round "1"]
[TimeControl "180+2"]
[Date "2023.06.20"]
[WhiteClock "0:00:58"]
[BlackClock "0:00:23"]
[Board "216"]

1. e4 {[%clk 0:02:54]}  e5 {[%clk 0:03:00]} 2. Nf3 {[%clk 0:02:54]}  Nf6 {[%clk 0:03:01]} 3. Nc3 {[%clk 0:02:54]}  Nc6 {[%clk 0:03:01]} 4. Bb5 {[%clk 0:02:53]}  Nd4 {[%clk 0:03:00]} 5. O-O {[%clk 0:02:48]}  Nxb5 {[%clk 0:03:00]} 6. Nxb5 {[%clk 0:02:49]}  c6 {[%clk 0:03:00]} 7. Nc3 {[%clk 0:02:49]}  d6 {[%clk 0:03:01]} 8. d4 {[%clk 0:02:48]}  Qc7 {[%clk 0:03:01]} 9. Bg5 {[%clk 0:02:46]}  Be7 {[%clk 0:03:01]} 10. dxe5 {[%clk 0:02:44]}  dxe5 {[%clk 0:03:01]} 11. h3 {[%clk 0:02:44]}  O-O {[%clk 0:03:01]} 12. Qe2 {[%clk 0:02:44]}  Be6 {[%clk 0:02:57]} 13. Rfd1 {[%clk 0:02:40]}  b5 {[%clk 0:02:53]} 14. Qe3 {[%clk 0:02:32]}  a5 {[%clk 0:02:45]} 15. Ne2 {[%clk 0:02:31]}  Rfd8 {[%clk 0:02:43]} 16. Ng3 {[%clk 0:02:24]}  Rxd1+ {[%clk 0:02:30]} 17. Rxd1 {[%clk 0:02:20]}  Rd8 {[%clk 0:02:27]} 18. Rxd8+ {[%clk 0:02:19]}  Bxd8 {[%clk 0:02:25]} 19. Nf5 {[%clk 0:02:17]}  a4 {[%clk 0:02:19]} 20. a3 {[%clk 0:02:14]}  Nd7 {[%clk 0:01:52]} 21. Bxd8 {[%clk 0:02:11]}  Qxd8 {[%clk 0:01:52]} 22. Qc3 {[%clk 0:02:05]}  Bxf5 {[%clk 0:01:40]} 23. exf5 {[%clk 0:02:06]}  Qf6 {[%clk 0:01:35]} 24. Nd2 {[%clk 0:01:58]}  h6 {[%clk 0:01:27]} 25. g4 {[%clk 0:01:55]}  c5 {[%clk 0:01:19]} 26. Ne4 {[%clk 0:01:55]}  Qc6 {[%clk 0:01:19]} 27. Qe3 {[%clk 0:01:45]}  b4 {[%clk 0:01:15]} 28. Nd2 {[%clk 0:01:34]}  Qd5 {[%clk 0:01:09]} 29. c4 {[%clk 0:01:24]}  Qc6 {[%clk 0:00:59]} 30. Qe4 {[%clk 0:01:22]}  Qd6 {[%clk 0:00:52]} 31. Qd5 {[%clk 0:01:17]}  Qxd5 {[%clk 0:00:51]} 32. cxd5 {[%clk 0:01:18]}  Nb6 {[%clk 0:00:49]} 33. d6 {[%clk 0:01:16]}  Kf8 {[%clk 0:00:45]} 34. Ne4 {[%clk 0:01:16]}  bxa3 {[%clk 0:00:45]} 35. bxa3 {[%clk 0:01:16]}  c4 {[%clk 0:00:46]} 36. Kf1 {[%clk 0:01:11]}  Ke8 {[%clk 0:00:45]} 37. Ke2 {[%clk 0:01:12]}  Kd7 {[%clk 0:00:45]} 38. Kd2 {[%clk 0:01:12]}  Nd5 {[%clk 0:00:41]} 39. h4 {[%clk 0:01:08]}  g6 {[%clk 0:00:38]} 40. fxg6 {[%clk 0:01:06]}  fxg6 {[%clk 0:00:38]} 41. f3 {[%clk 0:01:05]}  Kc6 {[%clk 0:00:37]} 42. Kc2 {[%clk 0:01:01]}  h5 {[%clk 0:00:33]} 43. gxh5 {[%clk 0:00:58]}  gxh5 {[%clk 0:00:34]} 44. Kd2 {[%clk 0:00:59]}  Kd7 {[%clk 0:00:34]} 45. Kc2 {[%clk 0:00:59]}  Ke6 {[%clk 0:00:34]} 46. Kd2 {[%clk 0:00:57]}  Kd7 {[%clk 0:00:23]} 47. Kc2 {[%clk 0:00:57]}  Kc6 {[%clk 0:00:23]} 48. Kd2 {[%clk 0:00:58]}  Kd7 {[%clk 0:00:23]} 1/2-1/2


[Site "https://www.chess.com"]